Cogmind - Beta 11 X8 @@@ ROGUE MODE // 2021.11.02 @ 03:38:40 Player: Runia Result: Self-destructed Performance ------------- Evolutions (3) 1500 Regions Visited (6) 1200 Robots Destroyed (130) 650 Value Destroyed (3729) 3729 Prototype IDs (14) 280 Alien Tech Used (0) 0 Bonus (511) 511 TOTAL SCORE: 7870 Bonus ------- High Alert Combat Kills 476 Follower Combat Kills 35 Cogmind --------- Core Integrity 524/700 Matter 300/300 Energy 24/100 System Corruption 2% Temperature Cool (9) Movement Treading (246) Ox1 Location -7/Factory Parts ------- > --- POWER (1) -------- (None) > --- PROPULSION (4) --- Armored Treads Armored Treads Medium Treads > --- UTILITY (5) ------ Improved Cooling System High-capacity Storage Unit Improved Signal Interpreter Hardened Heavy Armor Plating > --- WEAPON (3) ------- Electrolaser Precision Beam Rifle Gauss Rifle > --- INVENTORY (20) --- Combat Airjet Coolant Injector Experimental Sensor Array Improved Propulsion Shielding Authchip [Propulsion] Authchip [Propulsion] Authchip [Device] Authchip [Device] Authchip [Processor] Improved Trap Extractor Pulse Rifle Advanced EMP Blaster Mini Grenade Launcher Mini Grenade Launcher Improved Datajack Chainsword Peak State ------------ > --- POWER ------------ Improved Deuterium Engine > --- PROPULSION ------- Armored Treads Armored Treads Advanced Treads Medium Treads > --- UTILITY ---------- High-capacity Storage Unit Experimental Sensor Array Improved Signal Interpreter Advanced Terrain Scan Processor Powered Armor > --- WEAPON ----------- Electrolaser Enhanced Autogun Enhanced Autogun > --- INVENTORY -------- Combat Airjet Advanced Heat Sink Improved Cooling System Coolant Injector Improved Propulsion Shielding Hardened Heavy Armor Plating System Shield Authchip [Propulsion] Authchip [Propulsion] Authchip [Device] Authchip [Device] Authchip [Processor] Improved Trap Extractor Pulse Rifle Precision Beam Rifle Advanced EMP Blaster Mini Grenade Launcher Mini Grenade Launcher Katana [Rating: 56] Favorites ----------- Power Deuterium Engine Engine Deuterium Engine Power Core Light Nuclear Core Propulsion Armored Treads Treads Armored Treads Leg Flexi-carbon Leg Utility Advanced Terrain Scan Processor Device Advanced Heat Sink Storage High-capacity Storage Unit Processor Advanced Terrain Scan Processor Hackware System Shield Protection Hardened Medium Armor Plating Weapon Enhanced Autogun Energy Gun Electrolaser Ballistic Gun Enhanced Autogun Launcher Mini Grenade Launcher Slashing Weapon Katana Build | -11 -10 -10 -10 -9 -8 -7 ------- Run | Scr Mat Min Exi Min Mat Fac Slots Evolved 6 | . . . . . 4 2 Power . | . . . . . . . Propulsion 2 | . . . . . 1 1 Utility 3 | . . . . . 2 1 Weapon 1 | . . . . . 1 . Parts Attached 123 | . 20 9 . 14 52 28 Power 9 | . 1 2 . 2 3 1 Engine 8 | . 1 2 . 1 3 1 Core 1 | . . . . 1 . . Reactor . | . . . . . . . Propulsion 19 | . 4 1 . 3 9 2 Treads 14 | . 4 1 . 1 6 2 Leg 5 | . . . . 2 3 . Wheel . | . . . . . . . Hover . | . . . . . . . Flight . | . . . . . . . Utility 39 | . 6 . . 4 15 14 Device 18 | . 2 . . 1 7 8 Storage 5 | . 3 . . . 1 1 Processor 2 | . . . . . 1 1 Hackware 1 | . . . . . . 1 Protection 13 | . 1 . . 3 6 3 Artifact . | . . . . . . . Weapon 56 | . 9 6 . 5 25 11 Energy Gun 16 | . . . . . 12 4 Energy Cannon . | . . . . . . . Ballistic Gun 16 | . 6 2 . 3 4 1 Ballistic Cannon . | . . . . . . . Launcher 21 | . 3 4 . 2 9 3 Special Weapon . | . . . . . . . Impact Weapon . | . . . . . . . Slashing Weapon 3 | . . . . . . 3 Piercing Weapon . | . . . . . . . Special Melee Weapon . | . . . . . . . Unidentified Prototypes 5 | . . . . . 5 . Corrupted Parts 3 | . . . . 3 . . System Corruption 12 | . . . . 12 . . Parts Lost 12 | . 1 3 . 1 2 5 Power 4 | . 1 1 . 1 . 1 Propulsion 3 | . . 1 . . 1 1 Utility 3 | . . . . . 1 2 Weapon 2 | . . 1 . . . 1 Highest Loss Streak 4 | . 1 2 . 1 1 4 Average Slot Usage (%) 96 | . 91 97 100 100 97 96 Engine 10 | . 14 13 14 6 9 6 Treads 24 | . 26 26 28 11 21 28 Leg 2 | . 1 . . 16 4 . Device 4 | . 1 . . . 9 6 Storage 10 | . 14 14 14 14 9 7 Processor 6 | . . . . . 8 14 Protection 8 | . 5 14 14 14 8 5 Energy Gun 4 | . . . . . 10 6 Ballistic Gun 19 | . 26 18 28 27 15 14 Launcher 1 | . . 9 . . . . Naked Turns . | . . . . . . . Heaviest Build 79 | 12 32 33 32 37 67 79 Greatest Support 90 | 20 40 40 40 40 64 90 Greatest Overweight (x) 1 | . . 1 . 1 1 1 Average Overweight (x) . | . . . . . . . Largest Inventory Capacity 20 | 8 20 15 15 15 20 20 Average Capacity 17 | 8 13 15 15 15 19 20 Most Carried 20 | 5 16 15 15 15 20 20 Average Carried 16 | 5 11 14 15 14 18 19 Final Capacity 20 | 8 15 15 15 15 20 20 Final Carried 20 | 4 15 15 15 15 20 16 Class Distribution -------------------- 46% | Mutant 26% | Tank 18% | Skirmisher 3% | Gunner Dominant Class ---------------- Mutant | -10/Materials Mutant | -10/Mines Mutant | -10/Exiles Mutant | -9/Mines Tank | -8/Materials Skirmisher | -7/Factory Resources | -11 -10 -10 -10 -9 -8 -7 ----------- Run | Scr Mat Min Exi Min Mat Fac Matter Collected 3685 | 189 693 509 166 322 1090 716 Remotely . | . . . . . . . Salvage Created 4969 | . 813 237 . 123 2490 1306 Parts 256 | . 44 19 . 2 116 75 Haulers Intercepted 11 | . 2 . . . 6 3 Recyclers Shooed 3 | . 1 . . 2 . . Parts Field Recycled . | . . . . . . . Retrieved Matter . | . . . . . . . Parts Self-Destructed . | . . . . . . . Prevented . | . . . . . . . Kills | -11 -10 -10 -10 -9 -8 -7 ------- Run | Scr Mat Min Exi Min Mat Fac Combat Hostiles Destroyed 93 | . 15 13 . 9 39 17 Guns 50 | . 12 2 . 6 22 8 AOE 42 | . 3 11 . 3 16 9 Classes Destroyed 16 | . 5 2 . . 7 2 Worker 10 | . 2 . . . 5 3 Builder 5 | . . . . . 4 1 Tunneler 2 | . . 1 . . . 1 Hauler 11 | . 2 . . . 6 3 Recycler 8 | . . . . . 6 2 Mechanic 1 | . . . . . 1 . Operator 1 | . . . . . . 1 Watcher 8 | . 1 . . . 5 2 Swarmer 15 | . 3 5 . . 4 3 Grunt 50 | . 12 7 . 1 22 8 Brawler 2 | . . . . . 2 . Duelist 3 | . . . . . 3 . Sentry 9 | . . . . . 6 3 Hunter 3 | . . . . . 2 1 Programmer 2 | . . . . . . 2 Assembled 9 | . . 1 . 8 . . Best Kill Streak 13 | . 3 5 . 3 13 7 Combat Bots Only 7 | . 3 5 . 3 7 6 Max Kills in Single Turn 4 | . 2 3 . 2 4 3 Gunslinging 1 | . 1 . . . . . Exploded 4 | . 1 3 . 2 4 2 Melee . | . . . . . . . Uniques/NPCs Destroyed . | . . . . . . . Combat | -11 -10 -10 -10 -9 -8 -7 -------- Run | Scr Mat Min Exi Min Mat Fac Damage Taken 5289 | . 576 598 . 276 2128 1711 Core 617 | . 67 57 . 48 269 176 Absorbed by Shields . | . . . . . . . Core Remaining (%) 60 | 100 . . . 31 51 . Volleys Fired 316 | . 72 33 . 24 128 59 Largest 3 | . 2 2 . 2 3 3 Hottest 187 | . 46 46 . 46 187 152 Shots Fired 729 | . 139 41 . 45 346 158 Gun 671 | . 134 17 . 41 329 150 Cannon . | . . . . . . . Launcher 58 | . 5 24 . 4 17 8 Special . | . . . . . . . Kinetic 445 | . 134 17 . 41 157 96 Thermal 226 | . . . . . 172 54 Explosive 53 | . 5 24 . 4 17 3 Electromagnetic 5 | . . . . . . 5 Robot Hit Streak 24 | . 17 9 . 4 22 24 Robot Miss Streak 7 | . 4 2 . 7 6 7 Penetration Max . | . . . . . . . Secondary Targets 8 | . 1 . . 1 4 2 Max Gunslinging Chain 1 | . 1 . . 1 1 1 Shots Hit Robots 444 | . 84 19 . 20 225 96 Core Hits 226 | . 30 17 . 15 115 49 Critical Kills 2 | . 1 . . . . 1 Critical Parts Destroyed 1 | . . . . . 1 . Critical Strikes 15 | . 1 . . . 9 5 Burn 12 | . . . . . 8 4 Destroy 3 | . 1 . . . 1 1 Melee Attacks 7 | . . . . . . 7 Impact . | . . . . . . . Slashing 7 | . . . . . . 7 Piercing . | . . . . . . . Sneak Attacks . | . . . . . . . Combat Hostiles . | . . . . . . . Follow-up Attacks . | . . . . . . . Damage Inflicted 11418 | . 1493 1098 . 491 5665 2671 Guns 7253 | . 1250 162 . 287 3719 1835 Cannons . | . . . . . . . Explosions 4142 | . 243 936 . 195 1938 830 Melee . | . . . . . . . Ramming 23 | . . . . 9 8 6 Kinetic 4252 | . 1250 162 . 287 1448 1105 Thermal 3554 | . . 81 . . 2511 962 Explosive 3211 | . 243 855 . 195 1698 220 Electromagnetic 378 | . . . . . . 378 Impact . | . . . . . . . Slashing . | . . . . . . . Piercing . | . . . . . . . Highest Corruption 16 | . 4 4 4 16 . 2 Average Corruption 3 | . 3 4 4 4 . 1 Corruption Purged . | . . . . . . . Effects 57 | . 5 20 15 14 . 3 Message Errors 20 | . 3 4 7 4 . 2 Matter Fused 15 | . 2 5 3 5 . . Heat Flow Errors 7 | . . 5 1 1 . . Energy Discharges 5 | . . 2 . 3 . . Data Loss (minor) 9 | . . 3 4 1 . 1 Weapon Failures 1 | . . 1 . . . . Overload Shots . | . . . . . . . Overflow Damage 159 | . . 52 . . 64 43 Projectiles . | . . . . . . . Explosions 159 | . . 52 . . 64 43 Melee . | . . . . . . . Knockbacks . | . . . . . . . Impact . | . . . . . . . Kinetic . | . . . . . . . Secondary . | . . . . . . . Self-Inflicted Damage 735 | . 9 317 . 38 371 . Shots 22 | . 1 12 . 2 7 . Rammed 7 | . . . . . 5 2 Targets Rammed 8 | . . . . 1 5 2 Kicked 1 | . . . . 1 . . Crushed . | . . . . . . . Highest Temperature 459 | . 43 289 212 172 459 156 Average Temperature 79 | . 11 96 109 29 118 40 Received Heat Transfer 1609 | . 306 90 . 40 639 534 Effects 6 | . . . . . 6 . Shutdowns 1 | . . . . . 1 . Energy Bleed 3 | . . . . . 3 . Interference 2 | . . . . . 2 . Siege Activations . | . . . . . . . Robots Corrupted . | . . . . . . . Combat Hostiles . | . . . . . . . Parts Fried 2 | . . . . . . 2 Impact Corruptions . | . . . . . . . Robots Melted 1 | . . . . . 1 . Combat Hostiles 1 | . . . . . 1 . Parts Melted 11 | . . . . . 8 3 Heat Transferred 7776 | . . 100 . . 5663 2013 Parts Sabotaged . | . . . . . . . Parts Stolen . | . . . . . . . Parts Stripped . | . . . . . . . Power Chain Reactions 4 | . . . . . . 4 Missiles Intercepted . | . . . . . . . Alert | -11 -10 -10 -10 -9 -8 -7 ------- Run | Scr Mat Min Exi Min Mat Fac Peak Influence 937 | . 235 291 . 58 937 510 Initial 426 | . . 61 . . . 426 Average 328 | . 102 126 . 17 525 412 Maximum Alert Level 3 | . 1 1 . . 3 2 Low Security (%) 36 | 100 81 69 . 100 14 . Level 1 17 | . 18 30 . . 7 31 Level 2 35 | . . . . . 50 68 Level 3 9 | . . . . . 28 . Level 4 . | . . . . . . . Level 5 . | . . . . . . . High Security . | . . . . . . . Max Security . | . . . . . . . Squads Dispatched 16 | . 3 . . . 8 5 Investigation 4 | . 2 . . . 1 1 Extermination 2 | . . . . . . 2 Reinforcement 3 | . 1 . . . 2 . Assault 2 | . . . . . 2 . Garrison 5 | . . . . . 3 2 Intercept . | . . . . . . . Construction Impeded 1 | . . . . . 1 . Haulers Reinforced . | . . . . . . . Active Scanning Responses . | . . . . . . . Cargo Convoy Interrupts 1 | . . . . . . 1 Stealth | -11 -10 -10 -10 -9 -8 -7 --------- Run | Scr Mat Min Exi Min Mat Fac Distress Signals 7 | . . . . . 5 2 Communications Jammed . | . . . . . . . Distress Signals . | . . . . . . . Times Spotted 149 | . 27 16 . 12 62 32 Peak Tracking Total 7 | . 4 4 . 2 5 7 Tactical Retreats 9 | . 1 3 . 2 2 1 Traps | -11 -10 -10 -10 -9 -8 -7 ------- Run | Scr Mat Min Exi Min Mat Fac Traps Triggered 6 | . 2 . . 1 . 3 Indirectly 2 | . . . . . . 2 Trap Hack Attempts . | . . . . . . . Triggered . | . . . . . . . Disarmed . | . . . . . . . Reprogrammed . | . . . . . . . Reused . | . . . . . . . Traps Extracted . | . . . . . . . Installed . | . . . . . . . Triggered . | . . . . . . . Machines | -11 -10 -10 -10 -9 -8 -7 ---------- Run | Scr Mat Min Exi Min Mat Fac Machines Disabled 10 | . . 1 . . 9 . Max in Single Turn 2 | . . 1 . . 2 . Garrison Access 1 | . . . . . . 1 Machines Sabotaged . | . . . . . . . Garrisons Compromised . | . . . . . . . Overloaded Fab Kills . | . . . . . . . Hacking | -11 -10 -10 -10 -9 -8 -7 --------- Run | Scr Mat Min Exi Min Mat Fac Machines Accessed 32 | . 7 1 1 1 12 10 Terminals 15 | . 5 . . . 8 2 Fabricators 1 | . . . . . . 1 Repair Stations 4 | . . . . . 2 2 Recycling Units 3 | . 2 . . . . 1 Scanalyzers 3 | . . . . . 1 2 Garrison Access 3 | . . . . . 1 2 Total Hacks 81 | . 18 1 1 1 42 18 Successful 41 | . 12 1 1 1 21 5 Failed 39 | . 5 . . . 21 13 Catastrophic 6 | . 1 . . . 2 3 Database Lockouts 1 | . 1 . . . . . Manual 18 | . 5 . . . 9 4 Terminals 44 | . 16 . . . 25 3 Fabricators 1 | . . . . . . 1 Repair Stations 13 | . . . . . 7 6 Recycling Units 3 | . 2 . . . . 1 Scanalyzers 10 | . . . . . 6 4 Garrison Access 7 | . . . . . 4 3 Terminal Hacks 26 | . 10 1 1 1 12 1 Record 1 | . . . 1 . . . Part Schematic 1 | . . . . . 1 . Robot Analysis 1 | . 1 . . . . . Prototype ID Bank 6 | . 1 . . . 5 . Open Door 2 | . . 1 . 1 . . Branch Access Points 1 | . . . . . 1 . Scanalyzer Index 1 | . . . . . . 1 Alert Level 2 | . 1 . . . 1 . Unreport Threat 2 | . 2 . . . . . Locate Traps 1 | . . . . . 1 . Hauler Manifests 3 | . 2 . . . 1 . Zone Layout 5 | . 3 . . . 2 . Fabricator Hacks . | . . . . . . . Repair Station Hacks 5 | . . . . . 4 1 Scan Component 3 | . . . . . 2 1 Repair 2 | . . . . . 2 . Recycling Unit Hacks . | . . . . . . . Scanalyzer 7 | . . . . . 5 2 Insert Component 4 | . . . . . 3 1 Analyze 3 | . . . . . 2 1 Garrison Access Hacks 1 | . . . . . . 1 Seal Access 1 | . . . . . . 1 Unauthorized Hacks 2 | . 2 . . . . . Terminals . | . . . . . . . Fabricators . | . . . . . . . Repair Stations . | . . . . . . . Recycling Units 2 | . 2 . . . . . Tunnel 2 | . 2 . . . . . Scanalyzers . | . . . . . . . Garrison Access . | . . . . . . . Data Cores Recovered 1 | . . . . . . 1 Used . | . . . . . . . Hacking Detections 23 | . 3 . . . 12 8 Full Trace Events 2 | . . . . . 1 1 Feedback Events . | . . . . . . . Feedback Blocked . | . . . . . . . Robot Schematics Acquired . | . . . . . . . Robots Built . | . . . . . . . Authchips . | . . . . . . . Time . | . . . . . . . Total Robot Build Rating . | . . . . . . . Part Schematics Acquired 3 | . . . . . 2 1 Parts Built . | . . . . . . . Authchips . | . . . . . . . Time . | . . . . . . . Total Part Build Rating . | . . . . . . . Parts Repaired 2 | . . . . . 2 . Time 89 | . . . . . 89 . Parts Recycled . | . . . . . . . Recycled Matter . | . . . . . . . Retrieved Matter . | . . . . . . . Retrieved Components . | . . . . . . . Parts Scanalyzed 3 | . . . . . 3 . Part Schematics Acquired 2 | . . . . . 1 1 Parts Damaged . | . . . . . . . Bothacking | -11 -10 -10 -10 -9 -8 -7 ------------ Run | Scr Mat Min Exi Min Mat Fac Used RIF Installer . | . . . . . . . Robots Hacked . | . . . . . . . Non-combat . | . . . . . . . Combat . | . . . . . . . Robot Hacks Applied . | . . . . . . . Relay Couplers Released . | . . . . . . . Robots Rewired . | . . . . . . . Allies Hacked . | . . . . . . . Hacks Repelled . | . . . . . . . Allies | -11 -10 -10 -10 -9 -8 -7 -------- Run | Scr Mat Min Exi Min Mat Fac Total Allies 3 | . . 3 . . . . Largest Group 3 | . . 3 3 3 . . Highest-Rated Group 40 | . . 40 40 40 . . Highest-Rated Ally 16 | . . 16 16 16 . . Total Orders . | . . . . . . . Ally Attacks 13 | . . . . 13 . . Total Damage 102 | . . . . 102 . . Kills 2 | . . . . 2 . . Allies Corrupted . | . . . . . . . Allies Melted . | . . . . . . . Intel | -11 -10 -10 -10 -9 -8 -7 ------- Run | Scr Mat Min Exi Min Mat Fac Robot Analysis Total 1 | . 1 . . . . . Derelict Logs Recovered 3 | . . 2 . 1 . . Drone Launches . | . . . . . . . Drone Recoveries . | . . . . . . . Exploration | -11 -10 -10 -10 -9 -8 -7 ------------- Run | Scr Mat Min Exi Min Mat Fac Turns Passed 7751 | 1 1123 1009 653 620 2532 1813 Spaces Moved 3567 | 1 512 547 406 392 878 831 Core . | . . . . . . . Treads 3084 | . 477 547 406 129 694 831 Legs 483 | 1 35 . . 263 184 . Wheels . | . . . . . . . Hover . | . . . . . . . Flight . | . . . . . . . Fastest Speed 110 | 120 120 160 160 120 110 161 Average Speed 177 | 120 157 166 160 133 223 177 Slowest Speed 250 | 120 160 240 160 240 250 250 Overloaded Moves . | . . . . . . . Propulsion Burnouts . | . . . . . . . Robots Hopped . | . . . . . . . Cave-ins Triggered . | . . . . . . . Exploration Rate (%) 62 | 1 80 97 88 67 79 25 Regions Visited 6 Branch Regions 3 Pre-discovered Areas 3 | . 2 1 . . . . Known Exits Taken . | . . . . . . . Unknown Exits Taken 6 | 1 1 1 1 1 1 . Scrap Searched 5 | . . 2 . 3 . . Spaces Dug 53 | . . 32 . 6 . 15 Terrain Destroyed 464 | . 44 171 . 36 180 33 Melee 7 | . . . . . . 7 Projectile . | . . . . . . . AOE 457 | . 44 171 . 36 180 26 Terrain Rammed . | . . . . . . . Walls Destroyed . | . . . . . . . Machines Disabled . | . . . . . . . Actions | -11 -10 -10 -10 -9 -8 -7 --------- Run | Scr Mat Min Exi Min Mat Fac Total 4459 | 2 706 603 410 447 1235 1056 Wait 302 | . 68 7 3 1 106 117 Move 3561 | . 511 546 405 391 877 831 Hop . | . . . . . . . Pick Up 66 | . 20 4 1 6 31 4 Fast Attach 15 | . 3 . . 4 8 . Attach 24 | . 3 3 . 1 11 6 Detach 3 | . . . . . 3 . Swap 84 | . 14 6 . 9 33 22 Drop 73 | 2 15 4 1 10 33 8 Fire 316 | . 72 33 . 24 128 59 Melee 7 | . . . . . . 7 Ram . | . . . . . . . Kick 1 | . . . . 1 . . Crush 7 | . . . . . 5 2 Escape Stasis . | . . . . . . . Rewire . | . . . . . . . Trap . | . . . . . . . Miscellaneous . | . . . . . . . Route ------- -11/Scrapyard -10/Materials (discovered 3 exits: [*Mat x2] / *Min) -10/Mines (discovered 3 exits: [*Mat x2] / *Exi) -10/Exiles -9/Mines -8/Materials (discovered 2 exits: *Fac x2) -7/Factory (discovered 2 exits: [*Fac] / *Low) History --------- Turn | Location | Event 2 | -11/Scrapyard | Discovered new exit (range 0) 2 | -11/Scrapyard | Entered Materials 315 | -10/Materials | Build established: Mutant 381 | -10/Materials | Discovered new exit (range 12) 503 | -10/Materials | Central database locked down 626 | -10/Materials | Discovered new exit (range 9) 909 | -10/Materials | Discovered new exit (range 16) 1125 | -10/Materials | Entered Mines 1450 | -10/Mines | Received a Rocket Launcher from a helpful Derelict 1638 | -10/Mines | Excavation squad dispatched 1638 | -10/Mines | A large section of the Mines collapsed 1888 | -10/Mines | Excavation squad dispatched 1893 | -10/Mines | Discovered new exit (range 8) 1925 | -10/Mines | Assisted by bots powering up and referring to "LRC-V3" 1942 | -10/Mines | Discovered new exit (range 6) 1958 | -10/Mines | Deemed a non-threat by the Exiles lab entrance 1958 | -10/Mines | Discovered new exit (range 5) 2023 | -10/Mines | Found the Drone Emporium 2033 | -10/Mines | Found Prototype Device 2134 | -10/Mines | Entered Exiles 2134 | -10/Exiles | Found Exiles lab abandoned 2134 | -10/Exiles | Accompanied by 3 allies 2770 | -10/Exiles | Discovered new exit (range 10) 2787 | -10/Exiles | Entered Mines 2787 | -9/Mines | Accompanied by 3 allies 2882 | -9/Mines | Assembled infested the area 2887 | -9/Mines | Assisted by a Guerilla fighting off Assembled 2956 | -9/Mines | Core integrity fell below 50% 3127 | -9/Mines | Learned Materials stockpile data 3281 | -9/Mines | Discovered new exit (range 8) 3312 | -9/Mines | Found a damaged Exp. Sensor Array with a note attached 3315 | -9/Mines | Found Prototype Device 3343 | -9/Mines | Met a Derelict who couldn't figure out how to use a Trap Extractor 3351 | -9/Mines | Found Corrupted Powered Armor 3405 | -9/Mines | System corruption reached 10% 3407 | -9/Mines | Entered Materials 3407 | -8/Materials | Evolved 4 slots: Propulsion x1, Utility x2, Weapon x1 3410 | -8/Materials | Identified Bomb Drone Bay 3412 | -8/Materials | Identified Exp. Sensor Array 3816 | -8/Materials | Garrison activated, responded to threat 3874 | -8/Materials | Destroyed 7 combat bots 4208 | -8/Materials | Build established: Tank 4569 | -8/Materials | Discovered new exit (range 16) 4781 | -8/Materials | Repaired Broken Cmb. Airjet 4808 | -8/Materials | Build established: Skirmisher 5007 | -8/Materials | First assault squad dispatched 5024 | -8/Materials | Repaired Hrd. Medium Armor Plating 5328 | -8/Materials | Build established: Tank 5387 | -8/Materials | Discovered new exit (range 8) 5939 | -8/Materials | Entered Factory 5939 | -7/Factory | Evolved 2 slots: Propulsion x1, Utility x1 6246 | -7/Factory | Build established: Skirmisher 6657 | -7/Factory | Garrison activated, responded to threat 7454 | -7/Factory | Discovered new exit (range 14) 7477 | -7/Factory | Identified exit to Lower Caves 7661 | -7/Factory | Discovered new exit (range 14) 7719 | -7/Factory | Garrison activated, responded to threat 7734 | -7/Factory | Cargo convoy interrupted 7752 | -7/Factory | Self-destructed Last Messages --------------- 07739_ Slug penetrates Wall. 07739_ Imp. Deuterium Engine destroyed. 07740_ Slammed into H-55 Commando. 07742_ Slug penetrates Wall. 07742_ Adv. Treads destroyed. 07743_ H-55 Commando destroyed. 07743_ Switching to secondary target: X-57 Shotgunner. 07744_ Acquired 45 matter. 07745_ Slug penetrates Wall. 07746_ X-57 Shotgunner suffers critical hit (Burn). 07746_ Slug penetrates X-57 Shotgunner. 07747_ Acquired 4 matter. 07748_ Critical hit (Burn: +37). 07748_ Slug penetrates Wall. 07749_ Wall collapses. 07749_ Discarded Adv. Terrain Scan Processor. 07751_ Acquired 10 matter. 07751_ Penetrated by Slug. 07751_ Critical hit (Destroy). 07751_ Slug penetrates Wall. Map ----- +----------------------------------------------------+ | ????????????????????????????????? | | ????????????????????????????????? | | ????????????????????????????????? | | ????????????????????????????????? | | ????????????????????????????????? | | ????????????????????????????????? | | ????????????????????????????????? | | ????????????????????????????????? | | ????????????????????????????????? | | ????????????????????????????????? | | ????????????????????????????????? | | ???##############???????????????? | | ???# #???????????????? | | ???# #???????????????? | | ???# #???????????????? | | ???# #???????????????? | | ???# #???????????????? | | #### #???????????????? | | + #???????######### | | #### #???????# # | | ???# #???????# # | | ???# #???????# # | | ???# #???????# # | | ???# #???????# " # | | ######+#############+#### " # | | ^ #@m " # | | ^ =;/x= " # | | Yh%=g " # | | ^ * !!! h#* " # | | ^ %!!%! # " # | | ######+################ # """ " # | | #??? ?????????????# # """ " # | | ?? ???????????# # "S # | | # ?????????# # """ # | | # #????????# # "" # | | # #????????#H# !# | | # #????????? ######### | | # #????????? ????????? | | # #????????? ????????? | | # #????????? ????????? | | #= #????????? ????????? | | # #?????????